fUST/lending_fUST_20260129
["ID","MTS","AMOUNT","RATE_DAILY","PERIOD"]
[403877637,1769619032657,-500.0,0.00011496,2]
[403877638,1769619032671,-500.0,0.00011496,2]
[403877639,1769619032679,-500.0,0.00011496,2]
[403877640,1769619032688,-500.0,0.00011496,2]
[403877641,1769619032698,-500.0,0.00011496,2]
[403877642,1769619032709,-500.0,0.00011496,2]
[403877643,1769619032718,-500.0,0.00011496,2]
[403877644,1769619032727,-500.0,0.00011496,2]
[403877645,1769619032738,-500.0,0.00011496,2]
[403877646,1769619032747,-500.0,0.00011496,2]
[403877647,1769619032756,-500.0,0.00011496,2]
[403877648,1769619032765,-500.0,0.00011496,2]
[403877649,1769619032774,-601.6330895,0.00011496,2]
[403877650,1769619032784,-601.6330895,0.00011496,2]
[403877651,1769619032793,-601.6330895,0.00011496,2]
[403877652,1769619032803,-601.6330895,0.00011496,2]
[403877653,1769619032812,-500.0,0.00011496,2]
[403877654,1769619032821,-601.6330895,0.00011496,2]
[403877655,1769619032830,-500.0,0.00011496,2]
[403877656,1769619032840,-500.0,0.00011496,2]
[403877657,1769619032849,-601.6330895,0.00011496,2]
[403877658,1769619032858,-500.0,0.00011496,2]
[403877659,1769619032867,-601.6330895,0.00011496,2]
[403877660,1769619032875,-500.0,0.00011496,2]
[403877661,1769619032884,-601.6330895,0.00011496,2]
[403877662,1769619032894,-500.0,0.00011496,2]
[403877663,1769619032903,-601.6330895,0.00011496,2]
[403877664,1769619032911,-500.0,0.00011496,2]
[403877665,1769619032921,-601.6330895,0.00011496,2]
[403877666,1769619032929,-601.6330895,0.00011496,2]
[403877667,1769619032938,-500.0,0.00011496,2]
[403877668,1769619032947,-341.6919647,0.00011496,2]
[403877669,1769619032956,-601.6330895,0.00011496,2]
[403877670,1769619032966,-500.0,0.00011496,2]
[403877671,1769619032975,-601.6330895,0.00011496,2]
[403877672,1769619032984,-500.0,0.00011496,2]
[403877673,1769619032993,-601.6330895,0.00011496,2]
[403877674,1769619033002,-500.0,0.00011496,2]
[403877675,1769619033011,-328.32125957,0.00011496,2]
[403877676,1769619033025,-273.31182993,0.00011496,2]
[403877677,1769619033035,-28.68817007,0.00011496,2]
[403877678,1769619033046,-471.31182993,0.00011496,2]
[403877679,1769619033055,-276.1649924,0.00011496,2]
[403877725,1769619037879,-500.0,0.00011495,2]
[403877727,1769619037888,-347.13134422,0.00011495,2]
[403877729,1769619037898,-500.0,0.00011498,2]
[403877731,1769619037907,-57087.8635697,0.00011499,2]
[403877733,1769619037916,-399.94,0.000115,2]
[403877735,1769619037925,-500.0,0.00011772,2]
[403877737,1769619037933,-3448.22173041,0.000118,2]
[403877739,1769619037946,-300.0,0.00011826,2]
[403877741,1769619037955,-300.0,0.00011826,2]
[403877743,1769619037964,-300.0,0.00011826,2]
[403877745,1769619037973,-300.0,0.00011826,2]
[403877747,1769619037984,-300.0,0.00011826,2]
[403877749,1769619037993,-300.0,0.00011826,2]
[403877751,1769619038002,-300.0,0.00011826,2]
[403877753,1769619038011,-300.0,0.00011826,2]
[403877755,1769619038020,-300.0,0.00011826,2]
[403877757,1769619038030,-300.0,0.00011826,2]
[403877759,1769619038039,-300.0,0.00011826,2]
[403877761,1769619038048,-300.0,0.00011826,2]
[403877763,1769619038057,-300.0,0.00011826,2]
[403877765,1769619038066,-300.0,0.00011826,2]
[403877767,1769619038075,-300.0,0.00011826,2]
[403877769,1769619038084,-600.0,0.00011826,2]
[403877771,1769619038093,-500.0,0.00012046,2]
[403877773,1769619038102,-398.73499168,0.00012057,2]
[403877775,1769619038112,-2798.98627166,0.00012276,2]
[403877777,1769619038121,-500.0,0.0001232,2]
[403877779,1769619038130,-238.08,0.00012329,2]
[403877780,1769619038140,-198.4,0.00012329,2]
[403877782,1769619038151,-165.34,0.00012329,2]
[403877785,1769619038162,-826.7,0.00012329,2]
[403877787,1769619038174,-2460.9054419,0.00012387,2]
[403877789,1769619038184,-500.0,0.00012589,2]
[403877791,1769619038193,-500.0,0.00012589,2]
[403877793,1769619038202,-200.57111926,0.00012589,2]
[403877795,1769619038211,-500.0,0.00012594,2]
[403877797,1769619038221,-271.0,0.00012626,2]
[403877798,1769619038231,-420.0,0.00012626,2]
[403877800,1769619038240,-420.0,0.00012626,2]
[403877801,1769619038249,-1680.0,0.00012645,2]
[403877802,1769619038258,-300.0,0.00012646,2]
[403877803,1769619038268,-500.0,0.00012726,2]
[403877805,1769619038278,-500.0,0.00012726,2]
[403877807,1769619038287,-195.23500925,0.00012726,2]
[403877808,1769619038296,-500.0,0.00012863,2]
[403877809,1769619038305,-500.0,0.00012863,2]
[403877810,1769619038315,-200.0,0.00012863,2]
[403877811,1769619038324,-250.0,0.00012863,2]
[403877812,1769619038334,-200.34117545,0.00012863,2]
[403877813,1769619038343,-431.36548199,0.00012868,2]
[403877814,1769619038352,-5080.2707695,0.000129,2]
[403877815,1769619038361,-500.0,0.00013,2]
[403877816,1769619038371,-500.0,0.00013,2]
[403877817,1769619038380,-200.9171616,0.00013007,2]
[403877818,1769619038389,-720.0,0.00013008,2]
[403877819,1769619038399,-500.0,0.00013137,2]
[403877820,1769619038409,-500.0,0.00013137,2]
[403877821,1769619038418,-200.0,0.00013144,2]
[403877822,1769619038427,-500.0,0.00013273,2]
[403877823,1769619038438,-500.0,0.00013273,2]
[403877824,1769619038447,-501.16992711,0.00013273,2]
[403877825,1769619038456,-180.08535491,0.00013273,2]
[403877826,1769619038465,-176.20020011,0.00013273,2]
[403877827,1769619038475,-500.0,0.00013273,2]
[403877828,1769619038484,-232.87999681,0.00013273,2]
[403877829,1769619038493,-504.34170429,0.00013273,2]
[403877830,1769619038503,-501.125497,0.00013273,2]
[403877831,1769619038513,-502.91668404,0.00013273,2]
[403877832,1769619038522,-500.0,0.00013273,2]
[403877833,1769619038531,-500.0,0.00013273,2]
[403877834,1769619038540,-500.0,0.00013273,2]
[403877835,1769619038549,-500.0,0.00013273,2]
[403877836,1769619038559,-250.0,0.00013274,2]
[403877837,1769619038568,-500.0,0.00013274,2]
[403877838,1769619038577,-500.0,0.00013274,2]
[403877839,1769619038587,-151.0,0.000133,2]
[403877840,1769619038596,-151.0,0.000134,2]
[403877841,1769619038605,-500.0,0.00013411,2]
[403877842,1769619038614,-500.0,0.00013411,2]
[403877843,1769619038623,-347.39255452,0.00013496,2]
[403877844,1769619038632,-1575.2875552,0.00013498,2]
[403877845,1769619038642,-151.0,0.000135,2]
[403877846,1769619038651,-28803.94424792,0.00013503,2]
[403877847,1769619038665,-171.04650347,0.00013503,2]
[403877848,1769619038674,-500.0,0.00013548,2]
[403877849,1769619038684,-500.0,0.00013548,2]
[403877850,1769619038693,-1720000.0,0.00013598,2]
[403877851,1769619038705,-1189.78,0.00013598,2]
[403877852,1769619038714,-1189.78,0.00013598,2]
[403877853,1769619038724,-1189.78,0.00013598,2]
[403877854,1769619038735,-1189.78,0.00013598,2]
[403877855,1769619038744,-1189.78,0.00013598,2]
[403877856,1769619038753,-1189.78,0.00013598,2]
[403877857,1769619038763,-1189.78,0.00013598,2]
[403877858,1769619038772,-1189.78,0.00013598,2]
[403877859,1769619038781,-1189.78,0.00013598,2]
[403877860,1769619038790,-1189.78,0.00013598,2]
[403877861,1769619038799,-1189.78,0.00013598,2]
[403877862,1769619038808,-1189.78,0.00013598,2]
[403877863,1769619038817,-1189.78,0.00013598,2]
[403877864,1769619038827,-1189.78,0.00013598,2]
[403877865,1769619038837,-1189.78,0.00013598,2]
[403877866,1769619038846,-1189.78,0.00013598,2]
[403877867,1769619038856,-1189.78,0.00013598,2]
[403877868,1769619038865,-1189.78,0.00013598,2]
[403877869,1769619038875,-1189.78,0.00013598,2]
[403877870,1769619038885,-1189.78,0.00013598,2]
[403877871,1769619038894,-1189.78,0.00013598,2]
[403877872,1769619038903,-1189.78,0.00013598,2]
[403877873,1769619038913,-1189.78,0.00013598,2]
[403877874,1769619038923,-1189.78,0.00013598,2]
[403877875,1769619038932,-1189.78,0.00013598,2]
[403877876,1769619038942,-1189.78,0.00013598,2]
[403877877,1769619038952,-1189.78,0.00013598,2]
[403877878,1769619038962,-1189.78,0.00013598,2]
[403877879,1769619038971,-1189.78,0.00013598,2]
[403877880,1769619038980,-1189.78,0.00013598,2]
[403877881,1769619038990,-1189.78,0.00013598,2]
[403877882,1769619038999,-1189.78,0.00013598,2]
[403877883,1769619039009,-1189.78,0.00013598,2]
[403877884,1769619039018,-1189.78,0.00013598,2]
[403877885,1769619039028,-1189.78,0.00013598,2]
[403877886,1769619039038,-1189.78,0.00013598,2]
[403877887,1769619039048,-1759.24,0.00013598,2]
[403877888,1769619039057,-300.0,0.00013673,2]
[403877889,1769619039067,-724.54643404,0.00013681,2]
[403877890,1769619039078,-155.68029,0.00013685,2]
[403877891,1769619039087,-500.0,0.00013685,2]
[403877892,1769619039097,-500.0,0.00013698,2]
[403877893,1769619039107,-493.63025993,0.00013698,2]
[403877894,1769619039117,-500.0,0.00013698,2]
[403877895,1769619039127,-500.0,0.00013698,2]
[403877896,1769619039137,-500.0,0.00013698,2]
[403877897,1769619039149,-500.0,0.00013698,2]
[403877898,1769619039159,-500.0,0.00013698,2]
[403877899,1769619039169,-500.0,0.00013698,2]
[403877900,1769619039179,-500.0,0.00013698,2]
[403877901,1769619039189,-500.0,0.00013698,2]
[403877902,1769619039199,-500.0,0.00013698,2]
[403877903,1769619039208,-500.0,0.00013698,2]
[403877904,1769619039217,-245.05641761,0.00013698,2]
[403877905,1769619039227,-756.27,0.00013698,2]
[403877906,1769619039237,-756.27,0.00013698,2]
[403877907,1769619039247,-756.27,0.00013698,2]
[403877908,1769619039256,-756.27,0.00013698,2]
[403877909,1769619039266,-756.27,0.00013698,2]
[403877910,1769619039275,-756.27,0.00013698,2]
[403877911,1769619039284,-756.27,0.00013698,2]
[403877912,1769619039293,-756.27,0.00013698,2]
[403877913,1769619039302,-756.27,0.00013698,2]
[403877914,1769619039311,-756.27,0.00013698,2]
[403877916,1769619039321,-756.27,0.00013698,2]
[403877917,1769619039330,-756.27,0.00013698,2]
[403877918,1769619039339,-756.27,0.00013698,2]
[403877919,1769619039348,-756.27,0.00013698,2]
[403877920,1769619039357,-756.27,0.00013698,2]
[403877921,1769619039366,-756.27,0.00013698,2]
[403877922,1769619039375,-756.27,0.00013698,2]
[403877923,1769619039384,-756.27,0.00013698,2]
[403877924,1769619039394,-500.0,0.00013698,2]
[403877925,1769619039403,-500.0,0.00013698,2]
[403877926,1769619039412,-500.0,0.00013698,2]
[403877927,1769619039420,-500.0,0.00013698,2]
[403877928,1769619039429,-500.0,0.00013698,2]
[403877929,1769619039438,-500.0,0.00013698,2]
[403877930,1769619039447,-500.0,0.00013698,2]
[403877931,1769619039456,-500.0,0.00013698,2]
[403877932,1769619039465,-500.0,0.00013698,2]
[403877934,1769619039476,-321.00935932,0.00013698,2]
[403877936,1769619039485,-500.0,0.00013698,2]
[403877938,1769619039494,-500.0,0.00013698,2]
[403877940,1769619039504,-231.9426637,0.00013698,2]
[403877942,1769619039514,-500.0,0.00013698,2]
[403877944,1769619039522,-500.0,0.00013698,2]
[403877945,1769619039532,-500.0,0.00013698,2]
[403877947,1769619039540,-199.72375222,0.00013698,2]
[403877949,1769619039549,-1000.0,0.00013699,2]
[403877950,1769619039558,-260.16839164,0.00013699,2]
[403877951,1769619039567,-500.0,0.00013699,2]
[403877952,1769619039576,-500.0,0.00013699,2]
[403877954,1769619039585,-500.0,0.00013699,2]
[403877956,1769619039594,-500.0,0.00013699,2]
[403877957,1769619039603,-445.1362178,0.00013699,2]
[403877958,1769619039612,-500.0,0.00013699,2]
[403877959,1769619039621,-500.0,0.00013699,2]
[403877960,1769619039631,-500.0,0.00013699,2]
[403877961,1769619039640,-500.0,0.00013699,2]
[403877962,1769619039649,-500.0,0.00013699,2]
[403877963,1769619039661,-500.0,0.00013699,2]
[403877964,1769619039672,-506.10991888,0.00013699,2]
[403877965,1769619039681,-320.04248703,0.00013699,2]
[403877966,1769619039824,-500.0,0.00013699,2]
[403877967,1769619039833,-500.0,0.00013699,2]
[403877968,1769619039842,-500.0,0.00013699,2]
[403877969,1769619039851,-500.0,0.00013699,2]
[403877970,1769619039860,-500.0,0.00013699,2]
[403877971,1769619039869,-213.84661778,0.00013699,2]
[403877972,1769619039878,-500.0,0.00013699,2]
[403877973,1769619039886,-500.0,0.00013699,2]
[403877974,1769619039896,-500.0,0.00013699,2]
[403877976,1769619039905,-500.0,0.00013699,2]
[403877978,1769619039915,-500.41621604,0.00013699,2]
[403877979,1769619039924,-500.0,0.00013699,2]
[403877980,1769619039934,-500.0,0.00013699,2]
[403877981,1769619039944,-500.0,0.00013699,2]
[403877982,1769619039953,-500.0,0.00013699,2]
[403877983,1769619039963,-500.0,0.00013699,2]
[403877984,1769619039972,-532.28183888,0.00013699,2]
[403877985,1769619039982,-500.0,0.00013699,2]
[403877986,1769619039991,-443.49274844,0.00013699,2]
[403877987,1769619040000,-500.0,0.00013699,2]
[403877988,1769619040010,-501.77042598,0.00013699,2]
[403877989,1769619040019,-500.0,0.00013699,2]
[403877990,1769619040029,-500.0,0.00013699,2]
[403877991,1769619040039,-500.0,0.00013699,2]
[403877992,1769619040048,-501.93478625,0.00013699,2]
[403877993,1769619040058,-1000.0,0.00013821,2]
[403877994,1769619040067,-1000.0,0.00013821,2]
[403877995,1769619040076,-1000.0,0.00013821,2]
[403877996,1769619040085,-1000.0,0.00013821,2]
[403877997,1769619040094,-1000.0,0.00013821,2]
[403877998,1769619040103,-1000.0,0.00013821,2]
[403877999,1769619040113,-163.24821694,0.00013822,2]
[403878000,1769619040122,-587.0,0.00013867,2]
[403878001,1769619040131,-194.0,0.00013867,2]
[403878002,1769619040141,-2351.0,0.00013909,2]
[403878003,1769619040151,-2736.94264847,0.00014,2]
[403878004,1769619040160,-756.27,0.00014005,2]
[403878006,1769619040170,-756.27,0.00014005,2]
[403878008,1769619040179,-756.27,0.00014005,2]
[403878009,1769619040189,-756.27,0.00014005,2]
[403878010,1769619040199,-756.27,0.00014005,2]
[403878011,1769619040208,-756.41785257,0.00014005,2]
[403878012,1769619040219,-100000.0,0.00014006,2]
[403878013,1769619040228,-5080.27076946,0.00014155,2]
[403878014,1769619040239,-600.0,0.00014221,2]
[403878015,1769619040248,-1000.0,0.00014247,2]
[403878016,1769619040257,-1000.0,0.00014247,2]
[403878017,1769619040266,-502.14214416,0.00014247,2]
[403878018,1769619040275,-928.72037754,0.00014247,2]
[403878019,1769619040284,-653.67992137,0.00014247,2]
[403878020,1769619040293,-172.30391573,0.00014247,2]
[403878021,1769619040302,-509.85507396,0.00014247,2]
[403878022,1769619040311,-250.0,0.00014247,2]
[403878023,1769619040320,-159.31465189,0.00014247,2]
[403878024,1769619040329,-501.75253763,0.00014247,2]
[403878025,1769619040338,-898.31661661,0.00014247,2]
[403878026,1769619040347,-1003.36640104,0.00014247,2]
[403878027,1769619040356,-1000.0,0.00014247,2]
[403878028,1769619040365,-800.60461598,0.00014247,2]
[403878029,1769619040374,-175.49146446,0.00014247,2]
[403878030,1769619040383,-626.86038304,0.00014247,2]
[403878031,1769619040393,-1001.40716094,0.00014247,2]
[403878032,1769619040402,-722.3651231,0.00014247,2]
[403878033,1769619040411,-378.71570647,0.00014247,2]
[403878034,1769619040420,-501.48666107,0.00014247,2]
[403878035,1769619040429,-501.67094293,0.00014247,2]
[403878036,1769619040438,-1000.0,0.00014247,2]
[403878037,1769619040448,-505.03835844,0.00014247,2]
[403878038,1769619040457,-1000.0,0.00014247,2]
[403878039,1769619040466,-1134.23032778,0.00014247,2]
[403878040,1769619040475,-1146.16076302,0.00014247,2]
[403878041,1769619040485,-653.47281249,0.00014247,2]
[403878042,1769619040494,-508.49522103,0.00014247,2]
[403878043,1769619040502,-1000.0,0.00014247,2]
[403878044,1769619040511,-864.0,0.00014309,2]
[403878045,1769619040520,-1500.0,0.00014368,2]
[403878046,1769619040529,-1500.0,0.00014368,2]
[403878047,1769619040538,-1500.0,0.00014368,2]
[403878048,1769619040547,-1500.0,0.00014368,2]
[403878049,1769619040556,-1500.0,0.00014368,2]
[403878050,1769619040566,-1500.0,0.00014368,2]
[403878051,1769619040575,-900.0,0.00014768,2]
[403878052,1769619040584,-500.0,0.00014795,2]
[403878053,1769619040593,-1196.49020811,0.00014795,2]
[403878054,1769619040602,-300.0,0.00014795,2]
[403878055,1769619040611,-500.0,0.00014795,2]
[403878056,1769619040620,-500.68775555,0.00014795,2]
[403878057,1769619040629,-500.0,0.00014795,2]
[403878058,1769619040639,-526.28781016,0.00014795,2]
[403878059,1769619040648,-1111.71757987,0.00014916,2]
[403878060,1769619040657,-2000.0,0.00014916,2]
[403878061,1769619040669,-2000.0,0.00014916,2]
[403878062,1769619040678,-2000.0,0.00014916,2]
[403878063,1769619040686,-2000.0,0.00014916,2]
[403878064,1769619040695,-2000.0,0.00014916,2]
[403878065,1769619040705,-823.0,0.00015231,2]
[403878066,1769619040714,-1729.0,0.000153,2]
[403878067,1769619040723,-600.0,0.00015316,2]
[403878068,1769619040733,-1000.0,0.00015464,2]
[403878069,1769619040743,-1500.0,0.00015464,2]
[403878070,1769619040752,-2506.71511543,0.00015464,2]
[403878071,1769619040761,-2500.0,0.00015464,2]
[403878072,1769619040771,-400.38463911,0.00015496,2]
[403878073,1769619040780,-1000.0,0.0001574,2]
[403878074,1769619040789,-574.12268118,0.00016012,2]
[403878075,1769619040799,-200.0,0.00016438,2]
[403878076,1769619040807,-500.0,0.00016438,2]
[403878077,1769619040817,-243.26900401,0.00016438,2]
[403878078,1769619040826,-150.42150351,0.00016438,2]
[403878079,1769619040835,-170.0,0.00016658,3]
[403878080,1769619040845,-1152.0,0.00016729,2]
[403878081,1769619040853,-5080.27076946,0.00016912,2]
[403878082,1769619040863,-160.0,0.0001704,2]
[403878083,1769619040872,-1041.66666667,0.0001704,2]
[403878084,1769619040881,-1000.0,0.00017314,2]
[403878085,1769619040890,-244.0,0.00017314,2]
[403878086,1769619040902,-453.3767237,0.00017496,2]
[403878087,1769619040911,-3507.40954272,0.00018296,2]
[403878088,1769619040920,-1613.0,0.00018374,2]
[403878089,1769619040929,-1000.0,0.00019046,2]
[403878090,1769619040938,-492.0,0.00019046,2]
[403878091,1769619040948,-506.36880829,0.00019496,2]
[403878092,1769619040957,-5080.27076946,0.0001967,2]
[403878093,1769619040966,-6133.44,0.000199,2]
[403878094,1769619040976,-1381.6,0.000199,2]
[403878095,1769619040985,-175.69,0.000199,2]
[403878096,1769619040994,-532.0,0.00020181,2]
[403878097,1769619041003,-3507.40954272,0.00020658,2]
[403878098,1769619041013,-1000.0,0.0002095,2]
[403878099,1769619041023,-791.0,0.0002095,2]
[403878100,1769619041033,-559.36089287,0.00021496,2]
[403878101,1769619041043,-5080.27076946,0.00022427,2]
[403878102,1769619041052,-3507.40954272,0.0002302,2]
[403878103,1769619041061,-1000.0,0.00023045,10]
[403878104,1769619041071,-1000.0,0.00023045,10]
[403878105,1769619041082,-236.58,0.000231,2]
[403878106,1769619041091,-293.17,0.000231,7]
[403878107,1769619041100,-612.35297746,0.00023496,2]
[403878108,1769619041110,-159.62665952,0.00024271,5]
[403878109,1769619041120,-206.36876951,0.00024899,2]
[403878110,1769619041129,-610879.379074,0.000249,2]
[403878111,1769619041139,-5080.27076946,0.00025185,2]
[403878112,1769619041150,-1000.0,0.0002535,10]
[403878113,1769619041159,-1000.0,0.0002535,10]
[403878114,1769619041169,-579.0,0.0002535,10]
[403878115,1769619041178,-3507.40954272,0.00025381,2]
[403878116,1769619041188,-665.34506205,0.00025496,2]
[403878117,1769619041198,-159.0,0.00025973,18]
[403878118,1769619041208,-630.0,0.00026559,2]
[403878119,1769619041217,-1369.0,0.00026559,2]
[403878120,1769619041226,-418.0,0.00026559,2]
[403878121,1769619041236,-418.0,0.00026559,2]
[403878122,1769619041245,-716.0,0.00026559,2]
[403878123,1769619041255,-180.381,0.00026559,2]
[403878124,1769619041264,-1381.6,0.000266,14]
[403878125,1769619041273,-167.0,0.00027,7]
[403878126,1769619041282,-500.0,0.00027198,2]
[403878127,1769619041291,-157.1173049,0.00027397,2]
[403878128,1769619041302,-718.33714664,0.00027496,2]
[403878129,1769619041314,-4246.65524428,0.00027737,2]
[403878130,1769619041324,-1957.856,0.00027737,2]
[403878131,1769619041333,-3507.40954272,0.00027743,2]
[403878132,1769619041342,-2030.296672,0.00027792,2]
[403878133,1769619041351,-2105.41764886,0.00027847,2]
[403878134,1769619041360,-1000.0,0.00027885,30]
[403878135,1769619041370,-1000.0,0.00027885,30]
[403878136,1769619041379,-1000.0,0.00027885,30]
[403878137,1769619041387,-6133.44,0.000279,2]
[403878138,1769619041397,-236.58,0.000279,2]
[403878139,1769619041406,-293.17,0.000279,7]
[403878140,1769619041415,-2183.31810187,0.00027902,2]
[403878141,1769619041423,-5080.27076946,0.00027942,2]
[403878142,1769619041433,-250.0,0.00027945,5]
[403878143,1769619041442,-250.0,0.00027945,5]
[403878144,1769619041452,-2264.10087164,0.00027957,2]
[403878145,1769619041461,-2347.87260389,0.00028012,2]
[403878146,1769619041470,-2434.74389024,0.00028067,2]
[403878147,1769619041480,-2524.82941417,0.00028122,2]
[403878148,1769619041489,-289.907,0.00028139,18]
[403878149,1769619041498,-200.892,0.00028139,18]
[403878150,1769619041507,-2618.2481025,0.00028177,2]
[403878151,1769619041516,-2673.39914073,0.00028232,2]
[403878152,1769619041526,-160.0,0.0002838,3]
[403878153,1769619041535,-350.0,0.00028493,5]
[403878154,1769619041544,-350.0,0.00028493,5]
[403878155,1769619041553,-5000.0,0.00028724,20]
[403878156,1769619041563,-665.3002178,0.00028781,2]
[403878157,1769619041572,-2661.2008712,0.00028781,2]
[403878158,1769619041581,-5987.7019602,0.00028781,2]
[403878159,1769619041590,-300.88317987,0.00028781,2]
[403878160,1769619041600,-1203.53271948,0.00028781,2]
[403878161,1769619041609,-2707.94861882,0.00028781,2]
[403878162,1769619041619,-4814.13087791,0.00028781,2]
[403878163,1769619041628,-7522.07949674,0.00028781,2]
[403878164,1769619041637,-10831.7944753,0.00028781,2]
[403878165,1769619041646,-400.0,0.0002898,3]
[403878166,1769619041655,-450.0,0.00029041,5]
[403878167,1769619041667,-450.0,0.00029041,5]
[403878168,1769619041677,-161.0,0.00029098,3]
[403878169,1769619041686,-175.69,0.000292,7]
[403878170,1769619041696,-1381.6,0.000292,14]
[403878171,1769619041707,-771.32923122,0.00029496,2]
[403878172,1769619041716,-630.0,0.00029559,2]
[403878173,1769619041725,-1369.0,0.00029559,2]
[403878174,1769619041735,-418.0,0.00029559,2]
[403878175,1769619041744,-418.0,0.00029559,2]
[403878176,1769619041754,-716.0,0.00029559,2]
[403878177,1769619041763,-179.0,0.00029559,2]
[403878178,1769619041772,-550.0,0.00029589,5]
[403878179,1769619041782,-236.57189686,0.00029589,5]
[403878180,1769619041791,-161.0,0.00029725,3]
[403878181,1769619041800,-730.0,0.0002973,3]
[403878182,1769619041809,-988.8744102,0.00029771,2]
[403878183,1769619041819,-221.75860918,0.00029941,5]
[403878184,1769619041828,-4581.48594404,0.0003,7]
[403878185,1769619041838,-4378.77122172,0.0003,7]
[403878186,1769619041847,-1000.0,0.0003,14]
[403878187,1769619041856,-429.49599009,0.0003,7]
[403878188,1769619041865,-1717.98396035,0.0003,7]
[403878189,1769619041875,-3865.46391079,0.0003,7]
[403878190,1769619041884,-6865.06390557,0.0003,7]
[403878191,1769619041893,-1041.66666667,0.0003,7]
[403878192,1769619041902,-160.0,0.0003,7]
[403878193,1769619041911,-190.0,0.0003,14]
[403878194,1769619041921,-1000.0,0.0003,14]
[403878195,1769619041930,-178.5494496,0.0003,14]
[403878196,1769619041940,-151.0,0.0003,14]
[403878197,1769619041949,-293.17,0.000301,7]
[403878198,1769619041958,-3507.40954272,0.00030105,2]
[403878199,1769619041967,-175.20269643,0.00030137,2]
[403878200,1769619041976,-650.0,0.00030137,5]
[403878201,1769619041986,-194.6865296,0.00030164,30]
[403878202,1769619041995,-1000.0,0.00030291,14]
[403878203,1769619042004,-6133.44,0.000303,2]
[403878204,1769619042013,-400.0,0.00030345,3]
[403878205,1769619042023,-151.0,0.00030353,14]
[403878206,1769619042032,-400.0,0.00030366,3]
[403878207,1769619042041,-473563.76,0.000304,6]
[403878208,1769619042050,-72829.46,0.000304,6]
[403878209,1769619042059,-190.0,0.00030411,14]
[403878210,1769619042069,-400.0,0.00030523,3]
[403878211,1769619042078,-1000.0,0.00030582,14]
[403878212,1769619042088,-160.0,0.00030613,4]
[403878213,1769619042097,-160.09522763,0.00030665,10]
[403878214,1769619042106,-1000.0,0.00030673,30]
[403878215,1769619042115,-1000.0,0.00030673,30]
[403878216,1769619042125,-1000.0,0.00030673,30]
[403878217,1769619042134,-715.0,0.00030673,30]
[403878218,1769619042144,-3089.0697409,0.00030683,2]
[403878219,1769619042154,-885.0338558,0.00030683,2]
[403878220,1769619042164,-250.0,0.00030684,5]
[403878221,1769619042173,-174.61919141,0.00030684,5]
[403878222,1769619042183,-250.0,0.00030684,5]
[403878223,1769619042192,-250.0,0.00030684,5]
[403878224,1769619042202,-2312.83697232,0.00030684,5]
[403878225,1769619042211,-181.08010149,0.00030684,5]
[403878226,1769619042220,-478.75725327,0.00030684,5]
[403878227,1769619042230,-2398.4119403,0.00030684,5]
[403878228,1769619042240,-496.47127164,0.00030684,5]
[403878229,1769619042249,-2487.15318209,0.00030684,5]
[403878230,1769619042258,-578.20924308,0.00030684,5]
[403878231,1769619042268,-2579.17784983,0.00030684,5]
[403878232,1769619042277,-514.84070869,0.00030684,5]
[403878233,1769619042286,-599.60298507,0.00030684,5]
[403878234,1769619042294,-459.4358162,0.00030684,5]
[403878235,1769619042303,-526.38521894,0.00030684,5]